[Event "*** Titled Tuesday Blitz"]
[Site "Chess.com"]
[Date "2021.03.02"]
[Round "4"]
[White "Mihnea2017"]
[Black "GregShahade"]
[Result "0-1"]
[WhiteElo "2454"]
[BlackElo "2645"]
[TimeControl "180+1"]
[EndTime "10:39:48 PST"]
[Termination "GregShahade won by resignation"]

1. e4 {[%clk 0:03:00.9]} 1... e5 {[%clk 0:03:00.2]} 2. Nf3 {[%clk 0:03:00]} 2...
Nc6 {[%clk 0:03:00.7]} 3. Bc4 {[%clk 0:02:59.6]} 3... Nf6 {[%clk 0:03:00.6]} 4.
d3 {[%clk 0:02:59.3]} 4... Bc5 {[%clk 0:03:00.9]} 5. O-O {[%clk 0:02:59.2]} 5...
a6 {[%clk 0:03:00.2]} 6. c3 {[%clk 0:02:54.8]} 6... d6 {[%clk 0:03:00.5]} 7. Bb3
{[%clk 0:02:54.9]} 7... Ba7 {[%clk 0:03:00.6]} 8. Nbd2 {[%clk 0:02:54.2]} 8...
O-O {[%clk 0:03:00.8]} 9. h3 {[%clk 0:02:53.3]} 9... h6 {[%clk 0:03:01.1]} 10.
Re1 {[%clk 0:02:53.1]} 10... Re8 {[%clk 0:03:01.7]} 11. Nf1 {[%clk 0:02:53.1]}
11... Be6 {[%clk 0:03:02.3]} 12. Bc2 {[%clk 0:02:46.1]} 12... d5 {[%clk
0:02:59.5]} 13. exd5 {[%clk 0:02:45.9]} 13... Bxd5 {[%clk 0:02:59.2]} 14. Ng3
{[%clk 0:02:46.1]} 14... Qd6 {[%clk 0:02:59.5]} 15. Ne4 {[%clk 0:02:40.5]} 15...
Nxe4 {[%clk 0:02:43.4]} 16. dxe4 {[%clk 0:02:40.4]} 16... Bc4 {[%clk 0:02:39.6]}
17. Qxd6 {[%clk 0:02:22.3]} 17... cxd6 {[%clk 0:02:40.5]} 18. Be3 {[%clk
0:02:22.6]} 18... Bxe3 {[%clk 0:02:35.4]} 19. Rxe3 {[%clk 0:02:22.7]} 19... Rad8
{[%clk 0:02:32]} 20. Nd2 {[%clk 0:02:14.5]} 20... Be6 {[%clk 0:02:30.3]} 21. Bb3
{[%clk 0:02:11.5]} 21... d5 {[%clk 0:02:25.1]} 22. exd5 {[%clk 0:02:09.7]} 22...
Bxd5 {[%clk 0:02:26]} 23. Bxd5 {[%clk 0:02:04.2]} 23... Rxd5 {[%clk 0:02:26.9]}
24. Nc4 {[%clk 0:02:04.4]} 24... b5 {[%clk 0:02:23.2]} 25. Na3 {[%clk
0:01:54.4]} 25... Rd2 {[%clk 0:02:22]} 26. Rb1 {[%clk 0:01:47.9]} 26... Red8
{[%clk 0:02:22.2]} 27. Kf1 {[%clk 0:01:41.9]} 27... f6 {[%clk 0:02:01.9]} 28.
Re2 {[%clk 0:01:41.8]} 28... b4 {[%clk 0:01:09.7]} 29. Nc4 {[%clk 0:01:23.6]}
29... Rd1+ {[%clk 0:01:08.3]} 30. Re1 {[%clk 0:01:19.8]} 30... Rxe1+ {[%clk
0:01:01.3]} 31. Kxe1 {[%clk 0:01:20.7]} 31... Rd3 {[%clk 0:00:50.3]} 32. cxb4
{[%clk 0:01:18.4]} 32... Nxb4 {[%clk 0:00:51.2]} 33. a3 {[%clk 0:01:12.8]} 33...
Nc2+ {[%clk 0:00:51.4]} 34. Ke2 {[%clk 0:01:11.6]} 34... Rd8 {[%clk 0:00:49.1]}
35. Rc1 {[%clk 0:00:53]} 35... Nd4+ {[%clk 0:00:47.5]} 36. Ke3 {[%clk
0:00:47.2]} 36... Rc8 {[%clk 0:00:46.3]} 37. f4 {[%clk 0:00:36.9]} 37... a5
{[%clk 0:00:38.9]} 38. fxe5 {[%clk 0:00:36.3]} 38... fxe5 {[%clk 0:00:38.5]} 39.
Rc3 {[%clk 0:00:33.2]} 39... Nb5 {[%clk 0:00:32.4]} 40. Rc1 {[%clk 0:00:30.4]}
40... a4 {[%clk 0:00:29.2]} 41. Ke4 {[%clk 0:00:15.2]} 41... Rxc4+ {[%clk
0:00:22.6]} 42. Rxc4 {[%clk 0:00:15.1]} 42... Nd6+ {[%clk 0:00:23.3]} 43. Kd5
{[%clk 0:00:15.8]} 43... Nxc4 {[%clk 0:00:23.9]} 44. Kxc4 {[%clk 0:00:16.7]}
44... Kf7 {[%clk 0:00:24]} 45. Kb4 {[%clk 0:00:16.5]} 45... e4 {[%clk
0:00:24.5]} 46. Kc4 {[%clk 0:00:15.9]} 46... Kf6 {[%clk 0:00:24.6]} 47. Kd4
{[%clk 0:00:16.3]} 47... Kf5 {[%clk 0:00:24]} 48. g3 {[%clk 0:00:16.7]} 48... h5
{[%clk 0:00:23.6]} 49. h4 {[%clk 0:00:11.9]} 49... g6 {[%clk 0:00:23.9]} 50. Ke3
{[%clk 0:00:10.7]} 50... Ke5 {[%clk 0:00:24.2]} 51. Ke2 {[%clk 0:00:10.8]} 51...
Kd4 {[%clk 0:00:24.6]} 52. Kd2 {[%clk 0:00:11.5]} 52... e3+ {[%clk 0:00:24.5]}
53. Ke2 {[%clk 0:00:12.3]} 53... Ke4 {[%clk 0:00:25]} 0-1

[Event "*** Titled Tuesday Blitz"]
[Site "Chess.com"]
[Date "2021.03.02"]
[Round "4"]
[White "Das_Virus_2020"]
[Black "losersgame"]
[Result "0-1"]
[WhiteElo "2459"]
[BlackElo "2329"]
[TimeControl "180+1"]
[EndTime "10:39:51 PST"]
[Termination "losersgame won by resignation"]

1. e4 {[%clk 0:03:00.9]} 1... e5 {[%clk 0:02:59.5]} 2. Nc3 {[%clk 0:03:00.2]}
2... Nf6 {[%clk 0:02:56.8]} 3. g3 {[%clk 0:03:00]} 3... Bb4 {[%clk 0:02:52.2]}
4. Bg2 {[%clk 0:02:56.9]} 4... Bxc3 {[%clk 0:02:51.4]} 5. dxc3 {[%clk
0:02:57.8]} 5... d6 {[%clk 0:02:48.3]} 6. Ne2 {[%clk 0:02:57.3]} 6... O-O {[%clk
0:02:38.9]} 7. O-O {[%clk 0:02:56.9]} 7... b6 {[%clk 0:02:34.2]} 8. c4 {[%clk
0:02:54.1]} 8... Bb7 {[%clk 0:02:33]} 9. Nc3 {[%clk 0:02:53.5]} 9... Nbd7 {[%clk
0:02:31.3]} 10. b3 {[%clk 0:02:48.9]} 10... h6 {[%clk 0:02:26.3]} 11. h3 {[%clk
0:02:47.9]} 11... Nc5 {[%clk 0:02:22.4]} 12. Qe2 {[%clk 0:02:36.9]} 12... Qd7
{[%clk 0:02:17.2]} 13. Kh2 {[%clk 0:02:33.6]} 13... Rae8 {[%clk 0:02:11.7]} 14.
a4 {[%clk 0:02:30.3]} 14... Nh7 {[%clk 0:01:59.1]} 15. a5 {[%clk 0:02:08]} 15...
f5 {[%clk 0:01:57.2]} 16. axb6 {[%clk 0:02:06.5]} 16... axb6 {[%clk 0:01:54.8]}
17. Ra7 {[%clk 0:02:04.1]} 17... Bc6 {[%clk 0:00:52.9]} 18. b4 {[%clk
0:01:48.6]} 18... Ne6 {[%clk 0:00:51.4]} 19. Nd5 {[%clk 0:01:37.3]} 19... f4
{[%clk 0:00:30]} 20. g4 {[%clk 0:01:12.3]} 20... f3 {[%clk 0:00:27.4]} 21. Qd1
{[%clk 0:01:07.5]} 21... fxg2 {[%clk 0:00:26.8]} 22. Kxg2 {[%clk 0:01:07.6]}
22... Bxd5 {[%clk 0:00:26.2]} 23. Qxd5 {[%clk 0:01:03.4]} 23... Nf6 {[%clk
0:00:24.5]} 24. Qd3 {[%clk 0:00:52.9]} 24... Qc6 {[%clk 0:00:20.6]} 25. f3
{[%clk 0:00:52.6]} 25... Ra8 {[%clk 0:00:20.5]} 26. Rxa8 {[%clk 0:00:50.7]}
26... Rxa8 {[%clk 0:00:20.1]} 27. Be3 {[%clk 0:00:50.3]} 27... Nf4+ {[%clk
0:00:15.5]} 28. Bxf4 {[%clk 0:00:50]} 28... exf4 {[%clk 0:00:16.4]} 29. Rf2
{[%clk 0:00:48.4]} 29... Nd7 {[%clk 0:00:15.8]} 30. Qb3 {[%clk 0:00:43.7]} 30...
Kh8 {[%clk 0:00:13.8]} 31. Rd2 {[%clk 0:00:42.9]} 31... Ne5 {[%clk 0:00:13.4]}
32. Rd4 {[%clk 0:00:42.5]} 32... Ra1 {[%clk 0:00:11.7]} 33. c5 {[%clk
0:00:39.9]} 33... bxc5 {[%clk 0:00:05.5]} 34. bxc5 {[%clk 0:00:36.7]} 34... Qxc5
{[%clk 0:00:05.2]} 35. c3 {[%clk 0:00:36.1]} 35... Qa7 {[%clk 0:00:03.2]} 36. h4
{[%clk 0:00:26.3]} 36... Qa2+ {[%clk 0:00:02.3]} 37. Qxa2 {[%clk 0:00:26]} 37...
Rxa2+ {[%clk 0:00:03.2]} 38. Kf1 {[%clk 0:00:26.1]} 38... Nxf3 {[%clk
0:00:03.4]} 39. Rb4 {[%clk 0:00:26.6]} 39... Ne5 {[%clk 0:00:03.4]} 40. g5
{[%clk 0:00:25.5]} 40... hxg5 {[%clk 0:00:03.1]} 41. hxg5 {[%clk 0:00:25.8]}
41... Kh7 {[%clk 0:00:03.4]} 42. Rb7 {[%clk 0:00:25.9]} 42... c5 {[%clk
0:00:02.5]} 43. Rb6 {[%clk 0:00:25.5]} 43... Ra3 {[%clk 0:00:02.3]} 44. Rxd6
{[%clk 0:00:25.2]} 44... Rxc3 {[%clk 0:00:03]} 45. Rd5 {[%clk 0:00:25.6]} 45...
Ng4 {[%clk 0:00:02.8]} 46. e5 {[%clk 0:00:25.8]} 46... Ne3+ {[%clk 0:00:02.7]}
47. Ke2 {[%clk 0:00:25.2]} 47... Nxd5 {[%clk 0:00:03.6]} 48. Kd2 {[%clk
0:00:26]} 48... Re3 {[%clk 0:00:03.7]} 49. e6 {[%clk 0:00:25.8]} 49... Rxe6
{[%clk 0:00:03.8]} 0-1

[Event "*** Titled Tuesday Blitz"]
[Site "Chess.com"]
[Date "2021.03.02"]
[Round "4"]
[White "karinachess1"]
[Black "Lovkov_Roman"]
[Result "0-1"]
[WhiteElo "2510"]
[BlackElo "2712"]
[TimeControl "180+1"]
[EndTime "10:39:52 PST"]
[Termination "Lovkov_Roman won on time"]

1. d4 {[%clk 0:03:00.9]} 1... d5 {[%clk 0:02:56.8]} 2. Nf3 {[%clk 0:02:59.2]}
2... e6 {[%clk 0:02:57.1]} 3. e3 {[%clk 0:02:57.6]} 3... c5 {[%clk 0:02:57.6]}
4. b3 {[%clk 0:02:57.4]} 4... Nf6 {[%clk 0:02:57.7]} 5. Bd3 {[%clk 0:02:55]}
5... Nc6 {[%clk 0:02:57.1]} 6. a3 {[%clk 0:02:54.4]} 6... Bd6 {[%clk 0:02:54.1]}
7. Bb2 {[%clk 0:02:54.1]} 7... O-O {[%clk 0:02:44.6]} 8. O-O {[%clk 0:02:53.1]}
8... b6 {[%clk 0:02:42.5]} 9. Nbd2 {[%clk 0:02:45.7]} 9... Bb7 {[%clk
0:02:42.4]} 10. Qe2 {[%clk 0:02:40.9]} 10... Ne7 {[%clk 0:01:56.1]} 11. Rad1
{[%clk 0:02:13.1]} 11... Ng6 {[%clk 0:01:53.3]} 12. Rfe1 {[%clk 0:02:11.1]}
12... Qe7 {[%clk 0:01:49.8]} 13. a4 {[%clk 0:02:02.1]} 13... Rac8 {[%clk
0:01:46.9]} 14. c4 {[%clk 0:01:55.8]} 14... cxd4 {[%clk 0:01:44.9]} 15. Nxd4
{[%clk 0:01:53.1]} 15... Bb4 {[%clk 0:01:43.7]} 16. Nc2 {[%clk 0:01:41]} 16...
Bd6 {[%clk 0:01:35.5]} 17. Nd4 {[%clk 0:01:40.6]} 17... Rfd8 {[%clk 0:01:28.6]}
18. h3 {[%clk 0:01:28.6]} 18... Ne5 {[%clk 0:01:06.5]} 19. Bb1 {[%clk
0:01:02.8]} 19... dxc4 {[%clk 0:01:06]} 20. Nxc4 {[%clk 0:00:59.8]} 20... Nxc4
{[%clk 0:01:05.8]} 21. bxc4 {[%clk 0:00:59.9]} 21... Bb4 {[%clk 0:01:04.3]} 22.
Rf1 {[%clk 0:00:57.3]} 22... Be4 {[%clk 0:01:00.6]} 23. Nf3 {[%clk 0:00:20.2]}
23... Bxb1 {[%clk 0:00:57.2]} 24. Rxb1 {[%clk 0:00:21.1]} 24... Ne4 {[%clk
0:00:53.9]} 25. Bd4 {[%clk 0:00:20.6]} 25... f6 {[%clk 0:00:45.7]} 26. Rfc1
{[%clk 0:00:20.8]} 26... e5 {[%clk 0:00:44.9]} 27. Ba1 {[%clk 0:00:21]} 27...
Qc5 {[%clk 0:00:27.6]} 28. Qc2 {[%clk 0:00:19.7]} 28... Nd2 {[%clk 0:00:24]} 29.
Nxd2 {[%clk 0:00:14.2]} 29... Rxd2 {[%clk 0:00:24.9]} 30. Qb3 {[%clk 0:00:12.5]}
30... Ba5 {[%clk 0:00:24.7]} 31. Bb2 {[%clk 0:00:07.1]} 31... Kh8 {[%clk
0:00:20.1]} 32. Ba3 {[%clk 0:00:07.4]} 32... Qc6 {[%clk 0:00:17.2]} 33. c5
{[%clk 0:00:07.9]} 33... Qd7 {[%clk 0:00:08]} 34. cxb6 {[%clk 0:00:06.5]} 34...
axb6 {[%clk 0:00:08.9]} 35. Rxc8+ {[%clk 0:00:05]} 35... Qxc8 {[%clk 0:00:09.8]}
36. Qf7 {[%clk 0:00:04.1]} 36... Rd7 {[%clk 0:00:07.6]} 37. Qh5 {[%clk
0:00:03.2]} 37... Rc7 {[%clk 0:00:06.4]} 0-1

[Event "*** Titled Tuesday Blitz"]
[Site "Chess.com"]
[Date "2021.03.02"]
[Round "4"]
[White "Love_craft"]
[Black "Karla"]
[Result "0-1"]
[WhiteElo "2553"]
[BlackElo "2308"]
[TimeControl "180+1"]
[EndTime "10:39:52 PST"]
[Termination "Karla won by checkmate"]

1. Nf3 {[%clk 0:03:00.9]} 1... d5 {[%clk 0:03:00.9]} 2. g3 {[%clk 0:03:00.8]}
2... Nf6 {[%clk 0:02:58.8]} 3. Bg2 {[%clk 0:02:59.7]} 3... c6 {[%clk 0:02:50.8]}
4. O-O {[%clk 0:02:53.7]} 4... Bg4 {[%clk 0:02:46.9]} 5. d3 {[%clk 0:02:54.6]}
5... Nbd7 {[%clk 0:02:42.8]} 6. h3 {[%clk 0:02:54.6]} 6... Bh5 {[%clk
0:02:40.5]} 7. Nbd2 {[%clk 0:02:54.7]} 7... e5 {[%clk 0:02:36.6]} 8. e4 {[%clk
0:02:54.9]} 8... dxe4 {[%clk 0:02:34]} 9. dxe4 {[%clk 0:02:55.8]} 9... Bc5
{[%clk 0:02:30.1]} 10. Qe2 {[%clk 0:02:55.5]} 10... O-O {[%clk 0:02:26.4]} 11.
b3 {[%clk 0:02:48.6]} 11... a5 {[%clk 0:02:18.7]} 12. a4 {[%clk 0:02:45.2]}
12... Qc7 {[%clk 0:02:18.6]} 13. Bb2 {[%clk 0:02:44.7]} 13... Rfe8 {[%clk
0:02:07.9]} 14. Nc4 {[%clk 0:02:42.3]} 14... b5 {[%clk 0:02:03.8]} 15. axb5
{[%clk 0:02:40.6]} 15... cxb5 {[%clk 0:02:01.9]} 16. Na3 {[%clk 0:02:21.1]}
16... Bxa3 {[%clk 0:02:01.8]} 17. Rxa3 {[%clk 0:02:13.5]} 17... b4 {[%clk
0:02:00.9]} 18. Ra2 {[%clk 0:02:07.8]} 18... Rac8 {[%clk 0:01:55.8]} 19. Ba1
{[%clk 0:02:06.5]} 19... Nc5 {[%clk 0:01:50.6]} 20. Qc4 {[%clk 0:01:33.7]} 20...
Nfxe4 {[%clk 0:01:45.5]} 21. Nxe5 {[%clk 0:01:32.9]} 21... Nd2 {[%clk
0:01:39.1]} 22. Qh4 {[%clk 0:01:12.7]} 22... Rxe5 {[%clk 0:01:29.5]} 23. Bxe5
{[%clk 0:00:58.9]} 23... Qxe5 {[%clk 0:01:29.8]} 24. Rfa1 {[%clk 0:00:50.9]}
24... Bf3 {[%clk 0:01:28.9]} 25. Qf4 {[%clk 0:00:25.6]} 25... Qd5 {[%clk
0:01:20.4]} 26. Rd1 {[%clk 0:00:19.3]} 26... Bxg2 {[%clk 0:01:16.1]} 27. Rxd2
{[%clk 0:00:19.3]} 27... Qc6 {[%clk 0:01:10.9]} 28. Rxa5 {[%clk 0:00:09.6]}
28... Bxh3 {[%clk 0:01:06.6]} 29. f3 {[%clk 0:00:06.1]} 29... Qb6 {[%clk
0:01:05.8]} 30. Ra1 {[%clk 0:00:03.3]} 30... Nd3+ {[%clk 0:00:53.7]} 31. Kh2
{[%clk 0:00:01.7]} 31... Nxf4 {[%clk 0:00:52.6]} 32. gxf4 {[%clk 0:00:02.6]}
32... Qe3 {[%clk 0:00:50.6]} 33. Rad1 {[%clk 0:00:02.2]} 33... h5 {[%clk
0:00:33.5]} 34. Kxh3 {[%clk 0:00:02.4]} 34... Qxf3+ {[%clk 0:00:32.1]} 35. Kh2
{[%clk 0:00:03]} 35... Qxf4+ {[%clk 0:00:32.2]} 36. Kh3 {[%clk 0:00:03]} 36...
Qg4+ {[%clk 0:00:32.3]} 37. Kh2 {[%clk 0:00:03.1]} 37... Rf8 {[%clk 0:00:32.2]}
38. Rg2 {[%clk 0:00:03.1]} 38... Qxd1 {[%clk 0:00:30.8]} 39. Kh3 {[%clk
0:00:03.1]} 39... Qg4+ {[%clk 0:00:30]} 40. Kh2 {[%clk 0:00:02.1]} 40... Qxg2+
{[%clk 0:00:28.2]} 41. Kxg2 {[%clk 0:00:03]} 41... Rc8 {[%clk 0:00:27.8]} 42.
Kg3 {[%clk 0:00:03.9]} 42... Rxc2 {[%clk 0:00:28.4]} 43. Kf4 {[%clk 0:00:04.7]}
43... Rc3 {[%clk 0:00:29]} 44. Kg5 {[%clk 0:00:05.5]} 44... Rxb3 {[%clk
0:00:29.9]} 45. Kh4 {[%clk 0:00:06]} 45... Rc3 {[%clk 0:00:30.8]} 46. Kg5 {[%clk
0:00:06.4]} 46... b3 {[%clk 0:00:31.7]} 47. Kf4 {[%clk 0:00:06.5]} 47... b2
{[%clk 0:00:32.6]} 48. Ke4 {[%clk 0:00:07.4]} 48... b1=Q+ {[%clk 0:00:33.5]} 49.
Kf4 {[%clk 0:00:07.6]} 49... Ra3 {[%clk 0:00:33.2]} 50. Kg5 {[%clk 0:00:08.5]}
50... Qb5+ {[%clk 0:00:32.9]} 51. Kh4 {[%clk 0:00:09.4]} 51... Ra4+ {[%clk
0:00:33]} 52. Kh3 {[%clk 0:00:09.4]} 52... Qb3+ {[%clk 0:00:33.9]} 53. Kh2
{[%clk 0:00:09.9]} 53... Ra2+ {[%clk 0:00:34.8]} 54. Kg1 {[%clk 0:00:07.6]}
54... Qb1# {[%clk 0:00:35.7]} 0-1

[Event "*** Titled Tuesday Blitz"]
[Site "Chess.com"]
[Date "2021.03.02"]
[Round "4"]
[White "Ghost_Pepper"]
[Black "Mazanchenko_Dmitry"]
[Result "1/2-1/2"]
[WhiteElo "2381"]
[BlackElo "2100"]
[TimeControl "180+1"]
[EndTime "10:39:53 PST"]
[Termination "Game drawn - insufficient material"]

1. e4 {[%clk 0:03:00.9]} 1... c5 {[%clk 0:02:57.3]} 2. Nf3 {[%clk 0:03:01.5]}
2... d6 {[%clk 0:02:57.1]} 3. d4 {[%clk 0:03:00.4]} 3... Nf6 {[%clk 0:02:57.1]}
4. Nc3 {[%clk 0:02:59.3]} 4... cxd4 {[%clk 0:02:57.1]} 5. Nxd4 {[%clk
0:03:00.2]} 5... Nc6 {[%clk 0:02:57.6]} 6. g3 {[%clk 0:02:56.6]} 6... Bg4 {[%clk
0:02:43.9]} 7. f3 {[%clk 0:02:27.5]} 7... Nxd4 {[%clk 0:02:40.9]} 8. fxg4 {[%clk
0:01:43.9]} 8... Nc6 {[%clk 0:02:07.6]} 9. g5 {[%clk 0:01:39.4]} 9... Nd7 {[%clk
0:02:07.2]} 10. Be3 {[%clk 0:01:39.9]} 10... e6 {[%clk 0:02:03.7]} 11. Qe2
{[%clk 0:01:19.9]} 11... Be7 {[%clk 0:02:00.6]} 12. h4 {[%clk 0:01:18.9]} 12...
a6 {[%clk 0:01:59.2]} 13. O-O-O {[%clk 0:01:19.1]} 13... b5 {[%clk 0:01:53.8]}
14. Kb1 {[%clk 0:01:18.9]} 14... Nce5 {[%clk 0:01:53.5]} 15. h5 {[%clk 0:01:14]}
15... Nc4 {[%clk 0:01:50.5]} 16. Bc1 {[%clk 0:01:11.9]} 16... Bxg5 {[%clk
0:01:37.4]} 17. Bxg5 {[%clk 0:00:44.9]} 17... Qxg5 {[%clk 0:01:38.3]} 18. e5
{[%clk 0:00:38.9]} 18... Qxe5 {[%clk 0:01:27.4]} 19. Qg4 {[%clk 0:00:38.3]}
19... Ndb6 {[%clk 0:01:15.8]} 20. Bxc4 {[%clk 0:00:34.9]} 20... Nxc4 {[%clk
0:01:14.3]} 21. Rhe1 {[%clk 0:00:34.9]} 21... Qc5 {[%clk 0:01:01.8]} 22. Ne4
{[%clk 0:00:30.3]} 22... Qf5 {[%clk 0:00:19.2]} 23. Qxf5 {[%clk 0:00:26.2]}
23... exf5 {[%clk 0:00:20.1]} 24. Nxd6+ {[%clk 0:00:26.4]} 24... Kf8 {[%clk
0:00:18.8]} 25. Nxf5 {[%clk 0:00:26]} 25... g6 {[%clk 0:00:18.3]} 26. Ne3 {[%clk
0:00:23.8]} 26... Nxe3 {[%clk 0:00:17]} 27. Rxe3 {[%clk 0:00:23.3]} 27... Kg7
{[%clk 0:00:17.9]} 28. Re7 {[%clk 0:00:23.4]} 28... Rhf8 {[%clk 0:00:16]} 29. a4
{[%clk 0:00:20.1]} 29... bxa4 {[%clk 0:00:14.3]} 30. Rdd7 {[%clk 0:00:19.7]}
30... Rae8 {[%clk 0:00:13.1]} 31. Rxe8 {[%clk 0:00:17.4]} 31... Rxe8 {[%clk
0:00:14]} 32. hxg6 {[%clk 0:00:17.9]} 32... hxg6 {[%clk 0:00:12.6]} 33. Rd6
{[%clk 0:00:18.4]} 33... a3 {[%clk 0:00:12.3]} 34. Rxa6 {[%clk 0:00:17.1]} 34...
axb2 {[%clk 0:00:11]} 35. Kxb2 {[%clk 0:00:17.7]} 35... Re3 {[%clk 0:00:10.3]}
36. Ra3 {[%clk 0:00:15]} 36... Rxa3 {[%clk 0:00:08.6]} 37. Kxa3 {[%clk
0:00:15.9]} 37... Kf6 {[%clk 0:00:08.2]} 38. Kb4 {[%clk 0:00:15.8]} 38... Ke7
{[%clk 0:00:08.4]} 39. g4 {[%clk 0:00:15.3]} 39... f5 {[%clk 0:00:08.2]} 40.
gxf5 {[%clk 0:00:14.8]} 40... gxf5 {[%clk 0:00:09.1]} 41. Kc5 {[%clk 0:00:15.4]}
41... Kd7 {[%clk 0:00:09.2]} 42. Kd5 {[%clk 0:00:15.4]} 42... Kc7 {[%clk
0:00:09.4]} 43. Ke5 {[%clk 0:00:15.5]} 43... Kc6 {[%clk 0:00:10.3]} 44. Kxf5
{[%clk 0:00:15.3]} 44... Kc5 {[%clk 0:00:11.2]} 45. Ke4 {[%clk 0:00:15.7]} 45...
Kc4 {[%clk 0:00:12.1]} 46. Ke3 {[%clk 0:00:16.3]} 46... Kc3 {[%clk 0:00:13]} 47.
Ke2 {[%clk 0:00:16]} 47... Kxc2 {[%clk 0:00:13.9]} 1/2-1/2

[Event "*** Titled Tuesday Blitz"]
[Site "Chess.com"]
[Date "2021.03.02"]
[Round "4"]
[White "dopolian"]
[Black "night_player"]
[Result "1-0"]
[WhiteElo "2394"]
[BlackElo "2180"]
[TimeControl "180+1"]
[EndTime "10:39:53 PST"]
[Termination "dopolian won by resignation"]

1. b3 {[%clk 0:02:59.6]} 1... d5 {[%clk 0:02:56]} 2. Bb2 {[%clk 0:02:59.4]} 2...
c5 {[%clk 0:02:56.5]} 3. e3 {[%clk 0:02:59.2]} 3... Nc6 {[%clk 0:02:56.9]} 4.
Bb5 {[%clk 0:02:57.2]} 4... Nf6 {[%clk 0:02:56.9]} 5. Nf3 {[%clk 0:02:55.6]}
5... Bg4 {[%clk 0:02:52.5]} 6. h3 {[%clk 0:02:53.9]} 6... Bh5 {[%clk 0:02:52.2]}
7. g4 {[%clk 0:02:53.2]} 7... Bg6 {[%clk 0:02:52.5]} 8. d3 {[%clk 0:02:48.3]}
8... e6 {[%clk 0:02:51.8]} 9. Nbd2 {[%clk 0:02:42.4]} 9... a6 {[%clk 0:02:51.3]}
10. Bxc6+ {[%clk 0:02:41.6]} 10... bxc6 {[%clk 0:02:52.2]} 11. Ne5 {[%clk
0:02:41.5]} 11... Qc7 {[%clk 0:02:51.6]} 12. f4 {[%clk 0:02:40]} 12... Bd6
{[%clk 0:02:36.1]} 13. Ndf3 {[%clk 0:02:39.3]} 13... Kf8 {[%clk 0:02:08.6]} 14.
Qe2 {[%clk 0:02:30.1]} 14... a5 {[%clk 0:02:01.3]} 15. a4 {[%clk 0:02:29]} 15...
Rb8 {[%clk 0:01:56.7]} 16. Bc3 {[%clk 0:02:23.5]} 16... h5 {[%clk 0:01:38.8]}
17. g5 {[%clk 0:02:22]} 17... Nd7 {[%clk 0:01:39.1]} 18. Nxd7+ {[%clk
0:02:21.5]} 18... Qxd7 {[%clk 0:01:40]} 19. Be5 {[%clk 0:02:15.6]} 19... c4
{[%clk 0:01:31.1]} 20. Bxd6+ {[%clk 0:02:08.3]} 20... Qxd6 {[%clk 0:01:31.2]}
21. bxc4 {[%clk 0:01:49.4]} 21... dxc4 {[%clk 0:01:29.5]} 22. Ne5 {[%clk
0:01:50]} 22... cxd3 {[%clk 0:01:01.8]} 23. Nxg6+ {[%clk 0:01:41.1]} 23... fxg6
{[%clk 0:01:01.8]} 24. cxd3 {[%clk 0:01:41.1]} 24... Kf7 {[%clk 0:00:55.9]} 25.
O-O {[%clk 0:01:37.6]} 25... Rhd8 {[%clk 0:00:54.4]} 26. Rfd1 {[%clk 0:01:28.3]}
26... Rb3 {[%clk 0:00:52.8]} 27. d4 {[%clk 0:01:23.6]} 27... Rdb8 {[%clk
0:00:47.3]} 28. Kf2 {[%clk 0:01:13.1]} 28... Qb4 {[%clk 0:00:46.1]} 29. Rdc1
{[%clk 0:01:07.3]} 29... Rb6 {[%clk 0:00:27.6]} 30. Rc4 {[%clk 0:01:03.7]} 30...
Rb2 {[%clk 0:00:20.9]} 31. Rxb4 {[%clk 0:00:58.9]} 31... Rxe2+ {[%clk
0:00:20.7]} 32. Kxe2 {[%clk 0:00:59.8]} 32... Rxb4 {[%clk 0:00:21.1]} 33. Rc1
{[%clk 0:00:56.3]} 33... Rxa4 {[%clk 0:00:17.2]} 34. Rxc6 {[%clk 0:00:56.4]}
34... Ra2+ {[%clk 0:00:17.5]} 35. Kf3 {[%clk 0:00:52.4]} 35... a4 {[%clk
0:00:16.7]} 36. Rc7+ {[%clk 0:00:50.8]} 36... Kf8 {[%clk 0:00:17.1]} 37. Ra7
{[%clk 0:00:49.2]} 37... a3 {[%clk 0:00:16.9]} 38. h4 {[%clk 0:00:45.5]} 38...
Ra1 {[%clk 0:00:16.6]} 39. Ke4 {[%clk 0:00:45.2]} 39... a2 {[%clk 0:00:13.5]}
40. Ke5 {[%clk 0:00:40.1]} 40... Re1 {[%clk 0:00:13.6]} 41. Rxa2 {[%clk
0:00:40.4]} 41... Rxe3+ {[%clk 0:00:13.5]} 42. Kd6 {[%clk 0:00:41.3]} 42... Re4
{[%clk 0:00:13.5]} 43. Ra8+ {[%clk 0:00:39.9]} 43... Kf7 {[%clk 0:00:14.1]} 44.
Ra7+ {[%clk 0:00:40.8]} 44... Kg8 {[%clk 0:00:14.6]} 45. Ra4 {[%clk 0:00:33.8]}
45... Rxf4 {[%clk 0:00:13.8]} 46. Kxe6 {[%clk 0:00:33.4]} 46... Rxh4 {[%clk
0:00:13.4]} 47. Ra8+ {[%clk 0:00:33.4]} 47... Kh7 {[%clk 0:00:13.2]} 48. d5
{[%clk 0:00:34.3]} 48... Rd4 {[%clk 0:00:12.3]} 49. d6 {[%clk 0:00:33.6]} 49...
h4 {[%clk 0:00:11.6]} 50. d7 {[%clk 0:00:33.4]} 50... h3 {[%clk 0:00:08.4]} 51.
d8=Q {[%clk 0:00:32.5]} 51... Rxd8 {[%clk 0:00:04.6]} 52. Rxd8 {[%clk
0:00:33.4]} 52... h2 {[%clk 0:00:04.3]} 53. Rd1 {[%clk 0:00:33.8]} 1-0